Cogmind - Beta 13 @@@ ROGUE MODE // 2024.04.09 @ 18:48:36 Player: DarkCat Result: Self-destructed Performance ------------- Evolutions (2) 1000 Regions Visited (4) 800 Robots Destroyed (20) 100 Value Destroyed (484) 484 Prototype IDs (0) 0 Alien Tech Used (0) 0 Bonus (0) 0 TOTAL SCORE: 2384 Bonus ------- None Cogmind --------- Core Integrity 269/550 Matter 266/300 Energy 350/350 System Corruption 0% Temperature Cool (0) Movement Core (750) Ox14 Location -8/Storage Parts ------- > --- POWER (1) -------- (None) > --- PROPULSION (3) --- (None) > --- UTILITY (4) ------ High-capacity Storage Unit High-capacity Battery Signal Interpreter > --- WEAPON (3) ------- (None) > --- INVENTORY (20) --- Structural Scanner Machine Analyzer Peak State ------------ > --- POWER ------------ Improved Ion Engine > --- PROPULSION ------- Wheel Wheel Compact Wheel > --- UTILITY ---------- Heat Sink High-capacity Storage Unit Signal Interpreter Improved Propulsion Shielding > --- WEAPON ----------- Light Assault Rifle Light Cannon Light Cannon > --- INVENTORY -------- Light Ion Engine Improved Ion Engine High-capacity Battery Structural Scanner Machine Analyzer Light Assault Rifle Light Assault Rifle [Rating: 15] Favorites ----------- Power Ion Engine Engine Ion Engine Propulsion Wheel Wheel Wheel Utility Signal Interpreter Device Improved Heat Sink Storage High-capacity Storage Unit Processor Signal Interpreter Protection Improved Propulsion Shielding Weapon Light Assault Rifle Energy Gun Small Laser Ballistic Gun Light Assault Rifle Ballistic Cannon Light Cannon Build | -11 -10 -9 -8 -8 ------- Run | Yrd Mat Mat Mat Sto Slots Evolved 4 | . . 2 2 . Power . | . . . . . Propulsion 1 | . . 1 . . Utility 2 | . . 1 1 . Weapon 1 | . . . 1 . Parts Attached 38 | 6 6 11 12 3 Power 6 | 1 . 2 2 1 Engine 6 | 1 . 2 2 1 Core . | . . . . . Reactor . | . . . . . Propulsion 11 | 2 2 5 2 . Treads . | . . . . . Leg . | . . . . . Wheel 11 | 2 2 5 2 . Hover . | . . . . . Flight . | . . . . . Utility 10 | 1 2 2 3 2 Device 3 | . . . 2 1 Storage 4 | 1 1 1 . 1 Processor 2 | . 1 1 . . Hackware . | . . . . . Protection 1 | . . . 1 . Artifact . | . . . . . Weapon 11 | 2 2 2 5 . Energy Gun 2 | 2 . . . . Energy Cannon . | . . . . . Ballistic Gun 5 | . 1 1 3 . Ballistic Cannon 4 | . 1 1 2 . Launcher . | . . . . . Special Weapon . | . . . . . Impact Weapon . | . . . . . Slashing Weapon . | . . . . . Piercing Weapon . | . . . . . Special Melee Weapon . | . . . . . Unidentified Prototypes . | . . . . . Parts Lost 15 | . . 3 8 4 Power 3 | . . 1 1 1 Propulsion 5 | . . 2 3 . Utility 3 | . . . 1 2 Weapon 4 | . . . 3 1 Highest Loss Streak 6 | . . 3 6 4 To Critical Strikes . | . . . . . Average Slot Usage (%) 86 | . 94 93 81 72 Engine 10 | . 14 10 8 8 Wheel 21 | . 28 31 15 18 Device 4 | . . . 8 7 Storage 10 | . 14 11 9 9 Processor 12 | . 9 22 11 9 Protection 4 | . . . 6 7 Energy Gun 2 | . 10 . . . Ballistic Gun 11 | . 6 8 15 13 Ballistic Cannon 7 | . 11 9 7 . Naked Turns . | . . . . . Heaviest Build 57 | 12 19 51 57 53 Greatest Support 36 | 26 26 36 36 28 Greatest Overweight (x) 3 | . . 1 3 1 Average Overweight (x) . | . . . 1 1 Largest Inventory Capacity 20 | 8 10 20 20 20 Average Capacity 16 | 6 8 17 20 20 Most Carried 9 | 5 9 9 9 5 Average Carried 5 | 2 5 7 5 4 Final Capacity 20 | 8 10 20 20 20 Final Carried 9 | 3 9 9 5 2 Class Distribution -------------------- 67% | Mutant 13% | Scavenger-Mutant 10% | Scavenger-Skirmisher 8% | Scavenger-Tank Dominant Class ---------------- Mutant | -10/Materials Mutant | -9/Materials Mutant | -8/Materials Mutant | -8/Storage Resources | -11 -10 -9 -8 -8 ----------- Run | Yrd Mat Mat Mat Sto Matter Collected 764 | 260 46 106 352 . Remotely . | . . . . . Salvage Created 542 | 89 65 75 313 . Parts 32 | 2 10 11 9 . Haulers Intercepted . | . . . . . Recyclers Shooed 1 | . . . 1 . Parts Field Recycled . | . . . . . Retrieved Matter . | . . . . . Parts Self-Destructed . | . . . . . Prevented . | . . . . . Kills | -11 -10 -9 -8 -8 ------- Run | Yrd Mat Mat Mat Sto Combat Hostiles Destroyed 14 | . 3 5 6 . Guns 10 | . 2 3 5 . Cannons 4 | . 1 2 1 . Classes Destroyed 7 | 2 2 1 2 . Tunneler 1 | 1 . . . . Recycler 2 | 1 . . 1 . Operator 1 | . . . 1 . Watcher 2 | . 1 . 1 . Swarmer 7 | . 3 4 . . Grunt 5 | . . . 5 . Sentry 2 | . . 1 1 . Best Kill Streak 5 | 2 3 5 2 . Combat Bots Only 5 | . 3 5 1 . Max Kills in Single Turn 1 | 1 1 1 1 . Gunslinging . | . . . . . Exploded . | . . . . . Melee . | . . . . . Uniques/NPCs Destroyed . | . . . . . Combat | -11 -10 -9 -8 -8 -------- Run | Yrd Mat Mat Mat Sto Hostile Shots Fired 163 | . 6 63 70 24 Missed 45 | . 3 14 21 7 Damage Taken 1859 | . 26 551 1013 269 Core 414 | . . 133 183 98 Absorbed by Shields . | . . . . . Redirected to Shielding 105 | . . . 87 18 Core Remaining (%) 88 | 100 100 66 . . Volleys Fired 70 | 6 4 15 40 5 Largest 3 | 2 2 2 3 2 Hottest 90 | 80 75 70 90 40 Shots Fired 162 | 12 8 29 107 6 Gun 113 | 12 4 13 78 6 Cannon 49 | . 4 16 29 . Launcher . | . . . . . Special . | . . . . . Kinetic 146 | . 4 29 107 6 Thermal 16 | 12 4 . . . Explosive . | . . . . . Electromagnetic . | . . . . . Robot Hit Streak 11 | 7 10 11 8 1 Robot Miss Streak 4 | 1 1 3 4 4 Penetration Max . | . . . . . Secondary Targets . | . . . . . Shots Hit Robots 94 | 9 5 18 61 1 Core Hits 47 | 3 4 8 31 1 Critical Kills 1 | . . 1 . . Critical Parts Destroyed . | . . . . . Critical Strikes 1 | . . 1 . . Destroy 1 | . . 1 . . Melee Attacks . | . . . . . Impact . | . . . . . Slashing . | . . . . . Piercing . | . . . . . Sneak Attacks . | . . . . . Combat Hostiles . | . . . . . Follow-up Attacks . | . . . . . Damage Inflicted 1060 | 98 67 258 627 10 Guns 592 | 98 31 72 381 10 Cannons 468 | . 36 186 246 . Explosions . | . . . . . Melee . | . . . . . Ramming . | . . . . . Kinetic 931 | . 36 258 627 10 Thermal 129 | 98 31 . . . Explosive . | . . . . . Electromagnetic . | . . . . . Impact . | . . . . . Slashing . | . . . . . Piercing . | . . . . . Highest Corruption . | . . . . . Average Corruption . | . . . . . Corruption Purged . | . . . . . Corruption Blocked . | . . . . . Overload Shots . | . . . . . Overflow Damage . | . . . . . Projectiles . | . . . . . Explosions . | . . . . . Melee . | . . . . . Knockbacks 3 | . . 1 2 . Impact . | . . . . . Kinetic 3 | . . 1 2 . Secondary . | . . . . . Self-Inflicted Damage . | . . . . . Shots . | . . . . . Rammed . | . . . . . Targets Rammed . | . . . . . Kicked . | . . . . . Crushed . | . . . . . Highest Temperature 74 | 74 65 16 60 10 Average Temperature 20 | 32 31 7 19 10 Received Heat Transfer 663 | . . 123 432 108 Siege Activations . | . . . . . Robots Corrupted . | . . . . . Combat Hostiles . | . . . . . Parts Fried . | . . . . . Impact Corruptions . | . . . . . Robots Melted . | . . . . . Combat Hostiles . | . . . . . Parts Melted 1 | 1 . . . . Heat Transferred 300 | 225 75 . . . Parts Sabotaged . | . . . . . Parts Stolen . | . . . . . Parts Stripped . | . . . . . Power Chain Reactions . | . . . . . Alert | -11 -10 -9 -8 -8 ------- Run | Yrd Mat Mat Mat Sto Peak Influence 272 | 10 130 189 272 49 Initial 79 | . 6 54 79 29 Average 125 | 5 81 136 183 34 Maximum Alert Level 1 | . . . 1 . Low Security (%) 82 | 100 100 100 61 100 Level 1 17 | . . . 38 . Level 2 . | . . . . . Level 3 . | . . . . . Level 4 . | . . . . . Level 5 . | . . . . . High Security . | . . . . . Max Security . | . . . . . Squads Dispatched 2 | . . 1 1 . Investigation . | . . . . . Extermination . | . . . . . Reinforcement 2 | . . 1 1 . Assault . | . . . . . Garrison . | . . . . . Intercept . | . . . . . Searches Triggered . | . . . . . Construction Impeded . | . . . . . Haulers Reinforced . | . . . . . Active Scanning Responses . | . . . . . Cargo Convoy Interrupts . | . . . . . Stealth | -11 -10 -9 -8 -8 --------- Run | Yrd Mat Mat Mat Sto Distress Signals 3 | . . . 1 2 Communications Jammed . | . . . . . Distress Signals . | . . . . . Times Spotted 36 | . 4 12 12 8 Peak Tracking Total 9 | . 4 6 4 9 Tactical Retreats 2 | . . . 2 . Traps | -11 -10 -9 -8 -8 ------- Run | Yrd Mat Mat Mat Sto Traps Triggered 2 | . . . . 2 Indirectly . | . . . . . Trap Hack Attempts . | . . . . . Triggered . | . . . . . Disarmed . | . . . . . Reprogrammed . | . . . . . Reused . | . . . . . Traps Extracted . | . . . . . Installed . | . . . . . Triggered . | . . . . . Machines | -11 -10 -9 -8 -8 ---------- Run | Yrd Mat Mat Mat Sto Machines Disabled 1 | . . . 1 . Max in Single Turn 1 | . . . 1 . Machines Repaired . | . . . . . Machines Dismantled . | . . . . . Machines Sabotaged . | . . . . . Overloaded Fab Kills . | . . . . . Hacking | -11 -10 -9 -8 -8 --------- Run | Yrd Mat Mat Mat Sto Machines Accessed 1 | . . . 1 . Terminals 1 | . . . 1 . Fabricators . | . . . . . Repair Stations . | . . . . . Recycling Units . | . . . . . Scanalyzers . | . . . . . Garrison Access . | . . . . . Total Hacks 1 | . . . 1 . Successful 1 | . . . 1 . Failed . | . . . . . Catastrophic . | . . . . . Database Lockouts . | . . . . . Manual . | . . . . . Terminals 1 | . . . 1 . Fabricators . | . . . . . Repair Stations . | . . . . . Recycling Units . | . . . . . Scanalyzers . | . . . . . Garrison Access . | . . . . . Terminal Hacks 1 | . . . 1 . Alert Level 1 | . . . 1 . Fabricator Hacks . | . . . . . Repair Station Hacks . | . . . . . Recycling Unit Hacks . | . . . . . Scanalyzer . | . . . . . Garrison Access Hacks . | . . . . . Unauthorized Hacks . | . . . . . Terminals . | . . . . . Fabricators . | . . . . . Repair Stations . | . . . . . Recycling Units . | . . . . . Scanalyzers . | . . . . . Garrison Access . | . . . . . Data Cores Recovered . | . . . . . Used . | . . . . . Hacking Detections . | . . . . . Full Trace Events . | . . . . . Feedback Events . | . . . . . Feedback Blocked . | . . . . . Robot Schematics Acquired . | . . . . . Robots Built . | . . . . . Authchips . | . . . . . Time . | . . . . . Total Robot Build Rating . | . . . . . Part Schematics Acquired . | . . . . . Parts Built . | . . . . . Authchips . | . . . . . Time . | . . . . . Total Part Build Rating . | . . . . . Parts Repaired . | . . . . . Time . | . . . . . Parts Recycled . | . . . . . Recycled Matter . | . . . . . Retrieved Matter . | . . . . . Retrieved Components . | . . . . . Parts Scanalyzed . | . . . . . Part Schematics Acquired . | . . . . . Parts Damaged . | . . . . . Bothacking | -11 -10 -9 -8 -8 ------------ Run | Yrd Mat Mat Mat Sto Used RIF Installer . | . . . . . Robots Hacked . | . . . . . Non-combat . | . . . . . Combat . | . . . . . Robot Hacks Applied . | . . . . . Relay Couplers Released . | . . . . . Fabnet Peak Effective % . | . . . . . Robots Rewired . | . . . . . Allies Hacked . | . . . . . Hacks Repelled . | . . . . . Allies | -11 -10 -9 -8 -8 -------- Run | Yrd Mat Mat Mat Sto Total Allies . | . . . . . Largest Group . | . . . . . Highest-Rated Group . | . . . . . Highest-Rated Ally . | . . . . . Total Orders . | . . . . . Ally Attacks . | . . . . . Total Damage . | . . . . . Kills . | . . . . . Allies Corrupted . | . . . . . Allies Melted . | . . . . . Intel | -11 -10 -9 -8 -8 ------- Run | Yrd Mat Mat Mat Sto Robot Analysis Total . | . . . . . Derelict Logs Recovered . | . . . . . Drone Launches . | . . . . . Drone Recoveries . | . . . . . Exploration | -11 -10 -9 -8 -8 ------------- Run | Yrd Mat Mat Mat Sto Turns Passed 1013 | 78 197 188 447 103 Spaces Moved 730 | 56 187 136 269 82 Core 17 | 17 . . . . Treads . | . . . . . Legs . | . . . . . Wheels 713 | 39 187 136 269 82 Hover . | . . . . . Flight . | . . . . . Fastest Speed 50 | 50 80 86 95 110 Average Speed 101 | 77 86 92 117 110 Slowest Speed 145 | 90 90 105 145 110 Overloaded Moves . | . . . . . Propulsion Burnouts . | . . . . . Robots Hopped . | . . . . . Cave-ins Triggered . | . . . . . Exploration Rate (%) 19 | 4 30 18 22 21 Regions Visited 4 Branch Regions 1 Pre-discovered Areas . | . . . . . Known Exits Taken 3 | . 1 1 1 . Unknown Exits Taken 1 | 1 . . . . Scrap Searched . | . . . . . Spaces Dug . | . . . . . Terrain Destroyed 1 | . . . 1 . Melee . | . . . . . Projectile 1 | . . . 1 . AOE . | . . . . . Terrain Rammed . | . . . . . Walls Destroyed . | . . . . . Machines Disabled . | . . . . . Actions | -11 -10 -9 -8 -8 --------- Run | Yrd Mat Mat Mat Sto Total 878 | 78 213 170 327 90 Wait . | . . . . . Move 726 | 55 186 135 268 82 Hop . | . . . . . Pick Up 36 | 10 12 7 7 . Fast Attach . | . . . . . Attach 26 | 6 2 5 10 3 Detach . | . . . . . Swap 12 | . 4 6 2 . Drop 8 | 1 5 2 . . Fire 70 | 6 4 15 40 5 Melee . | . . . . . Ram . | . . . . . Kick . | . . . . . Crush . | . . . . . Escape Stasis . | . . . . . Rewire . | . . . . . Trap . | . . . . . Miscellaneous . | . . . . . Route ------- -11/Scrapyard -10/Materials (discovered 2 exits: *Mat / [*Min]) -9/Materials -8/Materials -8/Storage History --------- Turn | Location | Event 8 | -11/Scrapyard | Discovered new exit (range 15) 79 | -11/Scrapyard | Entered Materials 79 | -10/Materials | Discovered new exit (range 8) 261 | -10/Materials | Discovered new exit (range 8) 275 | -10/Materials | Identified exit to Materials 276 | -10/Materials | Entered another Materials area 276 | -9/Materials | Evolved 2 slots: Propulsion x1, Utility x1 317 | -9/Materials | Build established: Mutant 399 | -9/Materials | Lost 3 parts (1p2n) 448 | -9/Materials | Discovered new exit (range 18) 463 | -9/Materials | Identified exit to Materials 464 | -9/Materials | Entered another Materials area 464 | -8/Materials | Evolved 2 slots: Utility x1, Weapon x1 701 | -8/Materials | Lost 6 parts (1p2n1u2w) 844 | -8/Materials | Discovered new exit (range 11) 871 | -8/Materials | Identified exit to Storage 911 | -8/Materials | Entered Storage 1009 | -8/Storage | Core integrity fell below 50% 1014 | -8/Storage | Self-destructed Last Messages --------------- LOCATION=STORAGE GOAL=ESCAPE 00968_ Lgt. Assault Rifle destroyed. 00971_ W-25 Informer sends out distress signal. 00985_ Imp. Heat Sink destroyed. 00990_ Imp. Propulsion Shielding destroyed. 00990_ Critical hit (Burn: +37). 00999_ Lgt. Ion Engine destroyed. 01012_ Triggered Blade Trap. 01012_ Massive razor-sharp blades shoot up from within the floor. 01012_ Imp. Ion Engine severed. 01012_ Imp. Heat Sink severed. 01012_ Lgt. Assault Rifle severed. 01013_ Triggered Blade Trap. 01013_ Massive razor-sharp blades shoot up from within the floor. 01013_ Com. Wheel severed. 01013_ Arm. Wheel severed. Map ----- +----------------------------------------------------+ | ?# #???????????????????????????????????? | | ?? #???????????????????????????????????? | | ???? != ?????????????????????????????????????? | | ######+########???????????????????????????????? | | #???????????????????????????????? | | #?????????? ??????????????????? | | #?????????? #?????????????????? | | ############# #?????????? #?????????????????? | | ????????????# #?????????? #?????????????????? | | ????????????# #?????????? #?????????????????? | | ????????????# #?????????? #?????????????????? | | ????????????# #?????????? +?????????????????? | | ????????????# #?????????# #?????????????????? | | ????????????# #?????????# #?????????????????? | | ????????????# #?????????# #?????????????????? | | ????????????# #?????????# #?????????????????? | | ????????????# #?????????#ag #?????????????????? | | ????????????# #?????????# #?????????????????? | | ????????????# ########### #?????????????????? | | ????????????# #?????????????????? | | ????????????# ##### #?????????????????? | | ????????????# " " "#??# #?????????????????? | | ????????????# "R" T#??#g #?????????????????? | | ????????????# """ "#??#g #?????????????????? | | ????????????# ##??#l #?????????????????? | | ??????????? #???#@= #?????????????????? | | ??????????###### #???#= #?????????????????? | | ???????????????#+##+#???# #?????????????????? | | ???????????????? ??????# #?????????????????? | | ???????????????? ??????#u #?????????????????? | | ????????????????? ?????? ?????????????????? | | ???????????????????????? " u????????????????? | | ???????????????????????? "T ????????????????? | | ???????????????????????? ???????????????? | | ???????????????????????? ###??????????????? | | ????????????????????????# ##????????????????? | | ????????????????????????? #?????????????????? | | ?????????????????????????? #?????????????????? | | ??????????????????????????? #?????????????????? | | ??????????????????????????????????????????????? | | ??????????????????????????????????????????????? | | ??????????????????????????????????????????????? | | ??????????????????????????????????????????????? | | ??????????????????????????????????????????????? | | ??????????????????????????????????????????????? | | ??????????????????????????????????????????????? | | ??????????????????????????????????????????????? | | ??????????????????????????????????????????????? | | ??????????????????????????????????????????????? | | ??????????????????????????????????????????????? | +----------------------------------------------------+ Best States ------------- Heat Dissipation 45 Energy Generation 12 Energy Capacity 515 Matter Stores 300 Matter Capacity 300 Sight Range 18 Terrain Scan Density 10 Propulsion Shielding 66 Evasion (%) 50 Item Schematics ----------------- None Robot Schematics ------------------ None Fabricated ------------ Nothing Alien Tech Used ----------------- None Achievements -------------- None Challenges ------------ None Game ------ Seed LightningSpreadJammer Manual? 0 Play Time 00:12:38 Cumulative 4.5 hours Start 2024.04.09 @ 18:37:05 End 2024.04.09 @ 18:48:36 Sessions 1 Manual Loads 0 Difficulty Rogue Special Mode None Game No. 10 Rogue 8 Adventurer 2 Explorer 0 Win Type - Total 0 Types 0/0/0/0/0/0/0/0/0 Lore% 5 Gallery% 10 Achievement% 12 Wizard Run 0 Options --------- Layout 1 ASCII 0 Keyboard 0 Movement Mouse Keybinds 0 Fullscreen 2 Font 24/Crisp Map View 50x35 Zoom Use 0% Tactical HUD 1 Map Filters NONE Filters NONE Steam 1 RUN: 35f606f3-bada-4a01-9ccb-faae7dbbda67